Cogmind - Beta 15 @@@ ROGUE MODE // 2025.08.24 @ 16:09:01 Player: the Result: Destroyed by as-35664 with Assembled P-sword Performance ------------- Evolutions (4) 2000 Regions Visited (12) 2400 Robots Destroyed (172) 860 Value Destroyed (4443) 4443 Prototype IDs (65) 1300 Alien Tech Used (0) 0 Bonus (3001) 3001 TOTAL SCORE: 14004 Bonus ------- High Alert Combat Kills 95 Follower Combat Kills 306 Aligned with FarCom 300 Met Imprinter 300 Destroyed Z-Imprinter 1000 Triggered Deep Caves Wall 500 Exposed GOLEM Chamber 500 Cogmind --------- Core Integrity 0/850 Matter 48/300 Energy 70/100 System Corruption 6% Temperature Cool (43) Movement Core (700) Ox13 Location -6/Deep Caves Parts ------- > --- POWER (2) -------- (None) > --- PROPULSION (4) --- (None) > --- UTILITY (5) ------ High-capacity Storage Unit > --- WEAPON (4) ------- (None) > --- INVENTORY (20) --- Cooled Deuterium Engine Cryofiber Web Experimental Heat Sink Zionite Biocell (600) Makeshift Transmission Jammer Drone Bay (1/2) Zionite Laser-S Zionite Laser-S Zionite Laser-S XL Autogun Array Molecular Deconstructor CR-A16's Pointy Stick Peak State ------------ > --- POWER ------------ Zionite Light DM Reactor Zionite Light DM Reactor > --- PROPULSION ------- Zionite Composite Leg I Zionite Composite Leg I Zionite Composite Leg I Wheel > --- UTILITY ---------- Experimental Heat Sink High-capacity Storage Unit Enhanced Optical Array Advanced Signal Interpreter Zionite Weapon Casing > --- WEAPON ----------- XL Autogun Array > --- INVENTORY -------- Cooled Deuterium Engine Cryofiber Web Experimental Heat Sink Experimental Heat Sink Zionite Biocell Makeshift Transmission Jammer Zionite Weapon Casing Zionite Heavy Carapace Layered Medium Armor Plating Mobile Refinery Mk. CCLXVII Drone Bay Zionite Laser-S Zionite Laser-S Zionite Laser-S Zionite Phaser-S Zionite Phaser-S Molecular Deconstructor CR-A16's Pointy Stick [Rating: 107] Favorites ----------- Power Improved Deuterium Engine Engine Improved Deuterium Engine Power Core Enhanced Nuclear Core Reactor Zionite Light DM Reactor Propulsion Wheel Treads Light Treads Leg Zionite Composite Leg I Wheel Wheel Hover Unit Zionite Glidesys I Utility High-capacity Storage Unit Device Advanced Sensor Array Storage High-capacity Storage Unit Processor Advanced Signal Interpreter Hackware System Shield Protection Layered Medium Armor Plating Weapon Improved Spread Laser Energy Gun Improved Spread Laser Energy Cannon Phase Cannon Ballistic Gun Assault Rifle Launcher Guided Missile Launcher Special Weapon Molecular Deconstructor Impact Weapon Power Maul Special Melee Weapon Datajack Build | -11 -10 -10 -10 -9 -8 -7 -7 -6 -6 -6 -6 -6 ------- Run | Yrd Mat Min Exi Min Mat Fac Sto Fac Low Low Zio Dee Slots Evolved 8 | . . . . . 4 2 . 2 . . . . Power 1 | . . . . . . . . 1 . . . . Propulsion 2 | . . . . . 1 . . 1 . . . . Utility 3 | . . . . . 1 2 . . . . . . Weapon 2 | . . . . . 2 . . . . . . . Parts Attached 158 | 7 21 4 3 9 28 14 19 22 3 1 2 25 Power 16 | 1 3 1 . 1 2 1 3 1 . . . 3 Engine 12 | 1 3 1 . 1 2 1 2 1 . . . . Core 1 | . . . . . . . 1 . . . . . Reactor 3 | . . . . . . . . . . . . 3 Propulsion 35 | 2 8 1 . 4 3 2 4 7 . . . 4 Treads 4 | 2 . . . 2 . . . . . . . . Leg 3 | . . . . . . . . . . . . 3 Wheel 27 | . 8 1 . 2 3 2 4 7 . . . . Hover 1 | . . . . . . . . . . . . 1 Flight . | . . . . . . . . . . . . . Utility 57 | 2 4 2 1 2 8 8 5 8 2 1 2 12 Device 24 | 1 3 1 . 1 4 3 2 3 2 . 1 3 Storage 6 | 1 1 . 1 . . 1 . . . . . 2 Processor 7 | . . . . . 1 2 . 2 . 1 . 1 Hackware 3 | . . . . . 1 1 . 1 . . . . Protection 17 | . . 1 . 1 2 1 3 2 . . 1 6 Artifact . | . . . . . . . . . . . . . Weapon 50 | 2 6 . 2 2 15 3 7 6 1 . . 6 Energy Gun 22 | . 4 . . 2 5 2 2 2 . . . 5 Energy Cannon 7 | . . . . . 2 . 2 3 . . . . Ballistic Gun 12 | 2 . . . . 5 1 2 1 . . . 1 Ballistic Cannon . | . . . . . . . . . . . . . Launcher 2 | . . . . . 1 . 1 . . . . . Special Weapon 4 | . 2 . 1 . . . . . 1 . . . Impact Weapon 2 | . . . . . 2 . . . . . . . Slashing Weapon . | . . . . . . . . . . . . . Piercing Weapon . | . . . . . . . . . . . . . Special Melee Weapon 1 | . . . 1 . . . . . . . . . Unidentified Prototypes 23 | . . 1 . . 1 . 9 1 1 . 1 9 Parts Lost 43 | . 4 1 . 4 . . 5 4 . . . 25 Power 4 | . 1 . . . . . . . . . . 3 Propulsion 15 | . 2 . . 2 . . 3 2 . . . 6 Utility 17 | . . . . . . . 2 2 . . . 13 Weapon 7 | . 1 1 . 2 . . . . . . . 3 Highest Loss Streak 12 | . 2 1 . 4 . . 3 2 . . . 12 To Critical Strikes . | . . . . . . . . . . . . . Average Backups 17 | 3 21 24 22 16 16 16 15 15 16 14 15 16 Power 1 | . . 1 1 1 1 1 1 1 1 1 1 1 Propulsion 3 | 1 9 10 7 2 3 2 . . . . . . Utility 8 | . 6 10 9 8 7 8 8 6 9 10 11 9 Weapon 4 | 1 3 2 2 2 3 4 5 6 4 3 3 5 Tool/Special . | . . . . . . . . . . . . . Unused Backups 50 | . 6 1 7 1 7 4 1 9 3 3 1 7 Power 2 | . . . 1 . 1 . . . . . . . Propulsion 12 | . 3 . 5 . 1 3 . . . . . . Utility 22 | . 2 1 1 . 1 . 1 6 1 2 1 6 Weapon 12 | . 1 . . 1 2 1 . 3 2 1 . 1 Tool/Special 2 | . . . . . 2 . . . . . . . Average Slot Usage (%) 94 | . 98 100 99 97 97 99 98 94 99 92 93 79 Engine 7 | . 13 14 14 14 9 6 3 5 6 6 6 1 Core 2 | . . . . . . . 3 5 6 6 6 1 Reactor 1 | . . . . . . . . . . . . 9 Leg 1 | . . . . . . . . . . . . 12 Wheel 22 | . 25 28 28 10 26 23 21 21 26 26 26 10 Device 11 | . 14 12 14 12 9 14 14 12 13 13 12 4 Storage 8 | . 14 14 14 14 9 7 7 6 6 6 6 6 Processor 4 | . . . . . . 6 7 6 6 6 6 8 Protection 5 | . . 1 . 1 8 6 7 6 6 6 6 9 Energy Gun 18 | . 16 27 23 26 24 29 28 14 13 13 13 3 Energy Cannon 2 | . . . . . 3 . . 11 11 . . . Ballistic Gun 2 | . 10 . . . 5 . . . . . . 3 Special Weapon 1 | . 1 . . . . . . . . 5 6 1 Peak Build Rating 107 | 7 14 21 24 17 36 52 55 64 73 73 73 107 Average Rating 46 | 5 11 13 14 15 28 48 51 58 65 71 71 89 On Entrance 36 | . 7 13 13 16 15 34 52 46 64 73 72 69 Naked Turns . | . . . . . . . . . . . . . Heaviest Build 98 | 13 92 98 92 52 71 72 72 92 97 87 87 88 Greatest Support 72 | 40 40 20 20 46 30 30 36 58 40 40 40 72 Greatest Overweight (x) 9 | . 9 4 4 5 3 2 6 5 2 2 2 8 Average Overweight (x) 2 | . 3 4 3 1 2 2 2 1 2 2 2 5 Largest Inventory Capacity 25 | 8 25 25 25 20 20 20 20 20 20 20 20 20 Average Capacity 20 | 7 24 25 23 20 20 20 20 20 20 20 20 20 Most Carried 25 | 6 25 25 25 20 20 20 20 20 20 20 20 20 Average Carried 20 | 3 21 24 23 19 19 19 19 19 19 18 19 19 Final Capacity 25 | 8 25 25 20 20 20 20 20 20 20 20 20 20 Final Carried 25 | 6 25 24 20 20 20 20 20 20 20 19 20 16 Class Distribution -------------------- 40% | Scavenger-Skirmisher 27% | Mutant 12% | Skirmisher 9% | Scavenger-Tank 6% | Tank Dominant Class ---------------- Mutant | -10/Materials Mutant | -10/Mines Mutant | -10/Exiles Mutant | -9/Mines Scavenger-Skirmisher | -8/Materials Scavenger-Skirmisher | -7/Factory Skirmisher | -7/Storage Scavenger-Skirmisher | -6/Factory Scavenger-Skirmisher | -6/Lower Caves Scavenger-Skirmisher | -6/Lower Caves Scavenger-Skirmisher | -6/Zion Scavenger-Tank | -6/Deep Caves Resources | -11 -10 -10 -10 -9 -8 -7 -7 -6 -6 -6 -6 -6 ----------- Run | Yrd Mat Min Exi Min Mat Fac Sto Fac Low Low Zio Dee Matter Collected 5587 | 277 939 126 . 242 690 363 640 646 109 105 20 1430 Remotely . | . . . . . . . . . . . . . Salvage Created 6830 | 136 1170 220 . 242 1230 856 1377 851 . . . 748 Parts 317 | 13 63 19 . 11 54 37 49 45 . . . 26 Haulers Intercepted 10 | . 2 . . . 5 1 2 . . . . . Recyclers Shooed 12 | 1 4 1 . . . 3 . 3 . . . . Parts Field Recycled . | . . . . . . . . . . . . . Retrieved Matter . | . . . . . . . . . . . . . Parts Self-Destructed . | . . . . . . . . . . . . . Prevented . | . . . . . . . . . . . . . Kills | -11 -10 -10 -10 -9 -8 -7 -7 -6 -6 -6 -6 -6 ------- Run | Yrd Mat Min Exi Min Mat Fac Sto Fac Low Low Zio Dee Combat Hostiles Destroyed 109 | . 16 4 . 3 13 7 21 8 . . . 37 Guns 89 | . 16 4 . 3 13 6 20 3 . . . 24 Cannons 5 | . . . . . . . . 5 . . . . AOE 10 | . . . . . . . . . . . . 10 Classes Destroyed 18 | 3 6 . . . 4 1 . 1 . . . 3 Worker 25 | 2 3 1 . 1 3 7 3 5 . . . . Builder 8 | . 4 . . . 1 1 1 1 . . . . Tunneler 7 | 3 1 . . 2 . . . 1 . . . . Hauler 10 | . 2 . . . 5 1 2 . . . . . Recycler 18 | 1 6 1 . 1 3 3 1 2 . . . . Mechanic 4 | . 1 . . . 1 . 2 . . . . . Operator 3 | . . . . . 1 . 1 1 . . . . Watcher 13 | . 2 . . . 3 4 2 2 . . . . Swarmer 17 | . 9 2 . . 3 1 2 . . . . . Grunt 31 | . 7 2 . 3 4 1 12 2 . . . . Brawler 2 | . . . . . 1 . 1 . . . . . Duelist 1 | . . . . . 1 . . . . . . . Sentry 12 | . . . . . 4 2 4 2 . . . . Hunter 1 | . . . . . . . . 1 . . . . Programmer 8 | . . . . . . 3 2 3 . . . . Z-Technician 5 | . . . . . . . . . . . . 5 Z-Light 10 | . . . . . . . . . . . . 10 Assembled 25 | . . . . . . . . . . . . 25 Golem 1 | . . . . . . . . . . . . 1 Best Kill Streak 12 | 3 5 3 . 3 5 4 7 3 . . . 12 Combat Bots Only 12 | . 5 2 . 3 3 2 4 1 . . . 12 Max Kills in Single Turn 4 | 1 1 1 . 1 2 1 2 1 . . . 4 Gunslinging 1 | . . . . . . . 1 . . . . . Exploded 2 | . . . . . . . . . . . . 2 Melee . | . . . . . . . . . . . . . Uniques/NPCs Destroyed 1 | . . . . . . . . . . . . 1 Z-Imprinter (-6/Deep Caves) Combat | -11 -10 -10 -10 -9 -8 -7 -7 -6 -6 -6 -6 -6 -------- Run | Yrd Mat Min Exi Min Mat Fac Sto Fac Low Low Zio Dee Hostile Shots Fired 615 | . 84 18 . 35 12 43 129 93 . 8 . 193 Missed 172 | . 23 4 . 5 . 18 37 36 . 2 . 47 Hits 443 | . 61 14 . 30 12 25 92 57 . 6 . 146 Melee 42 | . . . . . . . . . . 6 . 36 Projectile 401 | . 61 14 . 30 12 25 92 57 . . . 110 Critical Strikes 13 | . 1 1 . . 1 . 2 4 . . . 4 Part Disruptions 5 | . . . . . . . . . . . . 5 Damage Taken 7460 | . 667 177 . 374 187 238 989 582 . 16 . 4230 Core 1266 | . 117 . . 118 44 11 91 45 . . . 840 Absorbed by Shields . | . . . . . . . . . . . . . Redirected to Shielding 481 | . . . . . . . . . . . . 481 Regen/Repaired (Parts) 109 | . . . . . . 61 . . . . 48 . Core Remaining (%) 70 | 100 . . . 6 92 . 85 . . . . . Volleys Fired 528 | 13 144 19 . 28 47 40 51 82 6 4 4 90 Largest 4 | 2 2 2 . 2 4 4 4 4 1 3 1 4 Hottest 320 | 40 156 112 . 112 252 282 282 320 85 150 . 240 Shots Fired 1078 | 26 262 34 . 42 141 129 175 146 7 10 4 102 Gun 883 | 26 237 30 . 42 120 129 174 44 1 8 . 72 Cannon 119 | . . . . . 11 . . 102 6 . . . Launcher 21 | . . . . . 1 . 1 . . . . 19 Special 55 | . 25 4 . . 9 . . . . 2 4 11 Kinetic 244 | 26 129 . . . 40 . . . . . . 49 Thermal 783 | . 133 34 . 42 89 129 174 146 7 8 . 21 Explosive 21 | . . . . . 1 . 1 . . . . 19 Electromagnetic 11 | . . . . . 11 . . . . . . . Phasic 2 | . . . . . . . . . . . . 2 Robot Hit Streak 14 | 4 8 13 . 8 13 13 14 14 . 2 . 11 Robot Miss Streak 15 | 2 5 2 . 3 2 3 4 5 . 10 . 15 Penetration Max . | . . . . . . . . . . . . . Secondary Targets 9 | . 2 1 . 1 1 . 4 . . . . . Max Gunslinging Chain 1 | . 1 1 . 1 1 . 1 . . . . . Shots Hit Robots 659 | 15 134 20 10 28 82 82 128 74 . 7 . 79 Core Hits 361 | 6 48 9 . 13 42 39 78 48 . 2 . 76 Critical Kills 1 | . . . . . 1 . . . . . . . Critical Parts Destroyed 2 | . 1 . . . . . 1 . . . . . Critical Strikes 25 | . 9 1 . . 2 7 6 . . . . . Burn 22 | . 8 1 . . 1 7 5 . . . . . Destroy 2 | . 1 . . . 1 . . . . . . . Smash 1 | . . . . . . . 1 . . . . . Melee Attacks 42 | . . . 10 2 9 6 15 . . . . . Impact 30 | . . . . . 9 6 15 . . . . . Slashing . | . . . . . . . . . . . . . Piercing . | . . . . . . . . . . . . . Sneak Attacks 13 | . . . 8 2 1 . 2 . . . . . Combat Hostiles . | . . . . . . . . . . . . . Follow-up Attacks . | . . . . . . . . . . . . . Damage Inflicted 16992 | 198 1857 302 . 306 1603 1734 3239 1992 . 110 . 5651 Guns 11593 | 198 1857 278 . 306 1298 1734 2882 678 . 110 . 2252 Cannons 1436 | . . . . . 122 . . 1314 . . . . Explosions 3581 | . . . . . 50 . 151 . . . . 3380 Melee 339 | . . . . . 133 . 206 . . . . . Ramming 19 | . . . . . . . . . . . . 19 Kinetic 3664 | 198 1065 . . . 399 . . . . . . 2002 Thermal 10974 | . 792 302 . 306 949 1734 2882 1992 . 110 . 1907 Explosive 1841 | . . . . . . . 151 . . . . 1690 Electromagnetic 122 | . . . . . 122 . . . . . . . Impact 339 | . . . . . 133 . 206 . . . . . Slashing . | . . . . . . . . . . . . . Piercing . | . . . . . . . . . . . . . Phasic 33 | . . . . . . . . . . . . 33 Highest Corruption 6 | . 5 5 5 5 . 1 3 2 2 2 2 6 Average Corruption 2 | . 3 5 5 5 . 1 1 1 2 2 2 1 Corruption Purged . | . . . . . . . . . . . . . Corruption Blocked . | . . . . . . . . . . . . . Effects 123 | . 21 20 21 14 . . 14 12 8 7 2 4 Message Errors 23 | . 7 4 2 3 . . 1 1 . 4 . 1 Matter Fused 32 | . 5 3 4 5 . . 5 4 5 1 . . Heat Flow Errors 19 | . 2 4 7 1 . . 1 2 . 1 1 . Energy Discharges 12 | . 3 3 4 . . . 1 . . . 1 . Parts Rejected 1 | . . . . . . . . . . . . 1 Parts Fused 4 | . 1 1 1 . . . 1 . . . . . Data Loss (minor) 17 | . 2 3 2 4 . . 3 1 . 1 . 1 Data Loss (major) 3 | . . . 1 . . . . 2 . . . . Misfires 4 | . . 1 . . . . . 1 2 . . . Alerts 1 | . . . . . . . . . . . . 1 Weapon Failures 7 | . 1 1 . 1 . . 2 1 1 . . . Overload Shots . | . . . . . . . . . . . . . Overflow Damage 621 | . . . . . 93 . 87 50 . . . 391 Projectiles 50 | . . . . . . . . 50 . . . . Explosions 391 | . . . . . . . . . . . . 391 Melee 180 | . . . . . 93 . 87 . . . . . Knockbacks . | . . . . . . . . . . . . . Impact . | . . . . . . . . . . . . . Kinetic . | . . . . . . . . . . . . . Secondary . | . . . . . . . . . . . . . Self-Inflicted Damage 9 | . . . . . . . . . . . . 9 Shots . | . . . . . . . . . . . . . Rammed 1 | . . . . . . . . . . . . 1 Targets Rammed 1 | . . . . . . . . . . . . 1 Kicked . | . . . . . . . . . . . . . Crushed . | . . . . . . . . . . . . . Highest Temperature 440 | . 251 263 272 302 234 360 440 372 115 341 206 404 Average Temperature 102 | . 61 86 106 108 82 107 136 116 42 143 104 108 Received Heat Transfer 2239 | . 258 102 . 210 99 48 345 96 . . . 1081 Effects 11 | . . . . 2 . . 4 2 . 2 . 1 Shutdowns 1 | . . . . . . . . 1 . . . . Energy Bleed 6 | . . . . 1 . . 2 1 . 1 . 1 Interference 2 | . . . . . . . 2 . . . . . Matter Decay 1 | . . . . . . . . . . 1 . . Damage (minor) 1 | . . . . 1 . . . . . . . . Siege Activations . | . . . . . . . . . . . . . Martial Activations . | . . . . . . . . . . . . . Shielding Activations . | . . . . . . . . . . . . . Robots Disrupted . | . . . . . . . . . . . . . Combat Hostiles . | . . . . . . . . . . . . . Robots Corrupted . | . . . . . . . . . . . . . Combat Hostiles . | . . . . . . . . . . . . . Parts Fried 2 | . . . . . 2 . . . . . . . Impact Corruptions 4 | . . . . . 3 . 1 . . . . . Robots Melted 3 | . . . . . . 1 2 . . . . . Combat Hostiles 2 | . . . . . . 1 1 . . . . . Parts Melted 41 | . 1 2 . 2 7 9 17 3 . . . . Heat Transferred 18801 | . 2590 827 . 722 2050 3857 6160 2320 . 95 . 180 Parts Sabotaged . | . . . . . . . . . . . . . Parts Stolen 4 | . . . . . . . . . . 4 . . Parts Stripped . | . . . . . . . . . . . . . Power Chain Reactions 1 | . . . . . 1 . . . . . . . Alert | -11 -10 -10 -10 -9 -8 -7 -7 -6 -6 -6 -6 -6 ------- Run | Yrd Mat Min Exi Min Mat Fac Sto Fac Low Low Zio Dee Maximum Alert Level 2 | . 1 . . . 1 . 2 1 . . . . Low Security (%) 89 | 100 96 100 . 100 72 100 67 93 . . . . Level 1 7 | . 3 . . . 27 . 8 6 . . . . Level 2 2 | . . . . . . . 23 . . . . . Level 3 . | . . . . . . . . . . . . . Level 4 . | . . . . . . . . . . . . . Level 5 . | . . . . . . . . . . . . . High Security . | . . . . . . . . . . . . . Max Security . | . . . . . . . . . . . . . Peak Influence 564 | 15 217 50 . 40 262 167 564 252 . . . . Initial 247 | . 6 40 . . . 89 68 247 . . . . Average 78 | 2 91 9 . 7 108 44 177 50 . . . . Influence Increases 3379 | 30 602 110 . 90 619 375 1086 467 . . . . Destroy 0b10 Robot/C 1600 | . 320 80 . 60 260 140 580 160 . . . . Destroy 0b10 Robot/NC 445 | 30 95 10 . 20 85 80 65 60 . . . . Destroy Leader 496 | . 78 20 . 10 86 60 168 74 . . . . Allied During Kill 161 | . . . . . 9 . 152 . . . . . Successful Hack 177 | . 24 . . . 59 27 32 35 . . . . Disable Machine 195 | . 30 . . . 45 15 45 60 . . . . Destroy Structure 140 | . 25 . . . 30 8 29 48 . . . . Partial Spotted 45 | . . . . . 30 15 . . . . . . Lose Combat Pursuer 120 | . 30 . . . 15 30 15 30 . . . . Influence Decreases 3379 | 20 507 213 2 90 422 420 692 967 46 . . . Entered New Map 580 | . 4 65 2 . . 108 84 299 18 . . . Time Decay 2354 | 20 463 138 . 70 422 312 418 483 28 . . . Lost Part 155 | . 40 10 . 20 . . 50 35 . . . . Lost Ally 140 | . . . . . . . 140 . . . . . Purge Threat 150 | . . . . . . . . 150 . . . . Squads Dispatched 26 | . 3 . . . 3 6 10 4 . . . . Investigation 3 | . 2 . . . 1 . . . . . . . Extermination 9 | . . . . . . 3 3 3 . . . . Reinforcement 9 | . 1 . . . 2 1 4 1 . . . . Assault 2 | . . . . . . 2 . . . . . . Garrison 3 | . . . . . . . 3 . . . . . Intercept . | . . . . . . . . . . . . . Searches Triggered . | . . . . . . . . . . . . . Construction Impeded 2 | . . . . . . . 1 1 . . . . Haulers Reinforced 3 | . . . . . . 1 2 . . . . . Active Scanning Responses . | . . . . . . . . . . . . . Cargo Convoy Interrupts 1 | . . . . . . 1 . . . . . . Stealth | -11 -10 -10 -10 -9 -8 -7 -7 -6 -6 -6 -6 -6 --------- Run | Yrd Mat Min Exi Min Mat Fac Sto Fac Low Low Zio Dee Distress Signals 10 | . 1 . . . 3 3 2 1 . . . . Communications Jammed 20 | . . . . . . 1 14 5 . . . . Distress Signals 16 | . . . . . . 1 12 3 . . . . Times Spotted 174 | . 32 5 . 3 15 12 27 16 . 4 . 60 Peak Tracking Total 41 | . 5 3 . 3 3 3 4 4 . 4 . 41 Tactical Retreats 8 | . 2 . . . 1 2 1 1 . . . 1 Traps | -11 -10 -10 -10 -9 -8 -7 -7 -6 -6 -6 -6 -6 ------- Run | Yrd Mat Min Exi Min Mat Fac Sto Fac Low Low Zio Dee Traps Triggered 14 | . 6 . . . . . 4 4 . . . . Indirectly . | . . . . . . . . . . . . . Trap Hack Attempts . | . . . . . . . . . . . . . Triggered . | . . . . . . . . . . . . . Disarmed . | . . . . . . . . . . . . . Reprogrammed . | . . . . . . . . . . . . . Reused . | . . . . . . . . . . . . . Traps Extracted . | . . . . . . . . . . . . . Installed . | . . . . . . . . . . . . . Triggered . | . . . . . . . . . . . . . Machines | -11 -10 -10 -10 -9 -8 -7 -7 -6 -6 -6 -6 -6 ---------- Run | Yrd Mat Min Exi Min Mat Fac Sto Fac Low Low Zio Dee Machines Disabled 18 | . 2 . . . 3 1 3 4 1 . . 4 Max in Single Turn 2 | . 1 . . . 2 1 1 1 1 . . 2 Garrison Access 1 | . . . . . . 1 . . . . . . Machines Repaired . | . . . . . . . . . . . . . Machines Dismantled . | . . . . . . . . . . . . . Machines Sabotaged . | . . . . . . . . . . . . . Overloaded Fab Kills . | . . . . . . . . . . . . . Hacking | -11 -10 -10 -10 -9 -8 -7 -7 -6 -6 -6 -6 -6 --------- Run | Yrd Mat Min Exi Min Mat Fac Sto Fac Low Low Zio Dee Machines Accessed 53 | . 9 . 2 . 10 11 10 10 1 . . . Terminals 36 | . 7 . . . 9 5 9 6 . . . . Fabricators 4 | . . . . . . 2 . 2 . . . . Repair Stations 4 | . 1 . . . 1 1 . 1 . . . . Recycling Units 2 | . 1 . . . . . 1 . . . . . Scanalyzers 2 | . . . . . . 2 . . . . . . Garrison Access 2 | . . . . . . 1 . 1 . . . . Total Hacks 138 | . 27 . 5 . 42 24 23 16 1 . . . Successful 63 | . 11 . 5 . 20 10 10 6 1 . . . Failed 74 | . 15 . . . 22 14 13 10 . . . . Catastrophic 11 | . 3 . . . 2 3 1 2 . . . . Database Lockouts 1 | . 1 . . . . . . . . . . . Manual 73 | . 18 . 1 . 31 7 11 4 1 . . . Terminals 104 | . 22 . . . 41 10 21 10 . . . . Fabricators 8 | . . . . . . 4 . 4 . . . . Repair Stations 9 | . 3 . . . 1 4 . 1 . . . . Recycling Units 4 | . 2 . . . . . 2 . . . . . Scanalyzers 5 | . . . . . . 5 . . . . . . Garrison Access 2 | . . . . . . 1 . 1 . . . . Terminal Hacks 34 | . 4 . 5 . 13 1 7 3 1 . . . Record 4 | . . . 4 . . . . . . . . . Part Schematic 1 | . . . . . 1 . . . . . . . Robot Analysis 5 | . 1 . . . 3 1 . . . . . . Prototype ID Bank 2 | . 1 . . . 1 . . . . . . . Open Door 3 | . . . . . . . 2 . 1 . . . Level Access Points 2 | . . . . . 1 . 1 . . . . . Branch Access Points 3 | . 1 . . . 1 . . 1 . . . . Terminal Index 3 | . 1 . . . 2 . . . . . . . Alert Level 1 | . . . . . . . 1 . . . . . Unreport Threat 1 | . . . . . . . . 1 . . . . Locate Traps 1 | . . . . . . . . 1 . . . . Hauler Manifests 1 | . . . . . 1 . . . . . . . Registered Components 1 | . . . . . 1 . . . . . . . Zone Layout 5 | . . . . . 2 . 3 . . . . . Proto ID Catalog 1 | . . . 1 . . . . . . . . . Fabricator Hacks 2 | . . . . . . 1 . 1 . . . . Network Status 2 | . . . . . . 1 . 1 . . . . Repair Station Hacks 6 | . 2 . . . . 4 . . . . . . Scan Component 4 | . 2 . . . . 2 . . . . . . Repair 2 | . . . . . . 2 . . . . . . Recycling Unit Hacks 1 | . 1 . . . . . . . . . . . Retrieve Components 1 | . 1 . . . . . . . . . . . Scanalyzer 3 | . . . . . . 3 . . . . . . Insert Component 2 | . . . . . . 2 . . . . . . Analyze 1 | . . . . . . 1 . . . . . . Garrison Access Hacks . | . . . . . . . . . . . . . Unauthorized Hacks 17 | . 4 . . . 7 1 3 2 . . . . Terminals 16 | . 4 . . . 7 1 2 2 . . . . Botnet 14 | . 3 . . . 6 1 2 2 . . . . Operators 2 | . 1 . . . 1 . . . . . . . Fabricators . | . . . . . . . . . . . . . Repair Stations . | . . . . . . . . . . . . . Recycling Units 1 | . . . . . . . 1 . . . . . Mask 1 | . . . . . . . 1 . . . . . Scanalyzers . | . . . . . . . . . . . . . Garrison Access . | . . . . . . . . . . . . . Data Cores Recovered 2 | . . . . . 1 . . 1 . . . . Used . | . . . . . . . . . . . . . Hacking Detections 43 | . 8 . . . 10 8 8 9 . . . . Full Trace Events 3 | . 2 . . . 1 . . . . . . . Feedback Events . | . . . . . . . . . . . . . Feedback Blocked . | . . . . . . . . . . . . . Robot Schematics Acquired . | . . . . . . . . . . . . . Robots Built . | . . . . . . . . . . . . . Authchips . | . . . . . . . . . . . . . Time . | . . . . . . . . . . . . . Total Robot Build Rating . | . . . . . . . . . . . . . Part Schematics Acquired 2 | . . . . . 1 1 . . . . . . Parts Built . | . . . . . . . . . . . . . Authchips . | . . . . . . . . . . . . . Time . | . . . . . . . . . . . . . Total Part Build Rating . | . . . . . . . . . . . . . Parts Repaired 2 | . . . . . . 2 . . . . . . Time 88 | . . . . . . 88 . . . . . . Parts Recycled . | . . . . . . . . . . . . . Recycled Matter . | . . . . . . . . . . . . . Retrieved Matter . | . . . . . . . . . . . . . Retrieved Components 3 | . 3 . . . . . . . . . . . Parts Scanalyzed 1 | . . . . . . 1 . . . . . . Part Schematics Acquired 1 | . . . . . . 1 . . . . . . Parts Damaged . | . . . . . . . . . . . . . Bothacking | -11 -10 -10 -10 -9 -8 -7 -7 -6 -6 -6 -6 -6 ------------ Run | Yrd Mat Min Exi Min Mat Fac Sto Fac Low Low Zio Dee Used RIF Installer . | . . . . . . . . . . . . . Robots Hacked 7 | . . . 5 2 . . . . . . . . Non-combat 3 | . . . 3 . . . . . . . . . Combat 4 | . . . 2 2 . . . . . . . . Robot Hacks Applied 9 | . . . 7 2 . . . . . . . . parse_system 9 | . . . 7 2 . . . . . . . . Relay Couplers Released 4 | . . . . . . 4 . . . . . . Machine Destruction 4 | . . . . . . 4 . . . . . . Fabnet Peak Effective % . | . . . . . . . . . . . . . Robots Rewired . | . . . . . . . . . . . . . Allies Hacked 1 | . . . . . . . 1 . . . . . Hacks Repelled . | . . . . . . . . . . . . . Allies | -11 -10 -10 -10 -9 -8 -7 -7 -6 -6 -6 -6 -6 -------- Run | Yrd Mat Min Exi Min Mat Fac Sto Fac Low Low Zio Dee Total Allies 12 | . . . . 2 . . 10 . . . . . Largest Group 10 | . . . . 2 2 . 10 . . . . . Highest-Rated Group 173 | . . . . 36 36 . 173 . . . . . Highest-Rated Ally 31 | . . . . 31 31 . 29 . . . . . Total Orders 21 | . . . . . . . . . 4 17 . . STAY 4 | . . . . . . . . . . 4 . . ROAM 3 | . . . . . . . . . 1 2 . . FOLLOW 2 | . . . . . . . . . . 2 . . EXPLORE 8 | . . . . . . . . . 2 6 . . RETURN 4 | . . . . . . . . . 1 3 . . Ally Attacks 82 | . . . . . 3 . 79 . . . . . Total Damage 996 | . . . . . 20 . 976 . . . . . Kills 9 | . . . . . . . 9 . . . . . Allies Corrupted 1 | . . . . . . . 1 . . . . . Allies Melted . | . . . . . . . . . . . . . Intel | -11 -10 -10 -10 -9 -8 -7 -7 -6 -6 -6 -6 -6 ------- Run | Yrd Mat Min Exi Min Mat Fac Sto Fac Low Low Zio Dee Active Infowar (turns) 11815 | 19 1990 562 996 . 1 1927 1038 1629 475 605 1473 1100 Optics 913 | . . . . . 1 . . . . . . 912 Sensors 7025 | . . 2 . . . 1917 920 1363 475 605 1473 270 Seismic 3801 | 19 1990 560 996 . . . . 236 . . . . Jamming 3733 | . . . . . . 1230 949 1467 87 . . . Robot Analysis Total 5 | . 1 . . . 3 1 . . . . . . Derelict Logs Recovered 9 | . . 2 . 1 . . . . 1 3 2 . Drone Launches 4 | . . . . . . . . . 2 2 . . Drone Recoveries 3 | . . . . . . . . . 1 2 . . Exploration | -11 -10 -10 -10 -9 -8 -7 -7 -6 -6 -6 -6 -6 ------------- Run | Yrd Mat Min Exi Min Mat Fac Sto Fac Low Low Zio Dee Turns Passed 15908 | 134 2400 684 996 383 1697 1930 1177 1776 475 605 1473 2178 Spaces Moved 9672 | 51 1113 424 720 168 1122 1359 619 1017 329 408 1272 1070 Core 2 | 2 . . . . . . . . . . . . Treads 186 | 49 66 . . 71 . . . . . . . . Legs 17 | . . . . . . . . . . . . 17 Wheels 9467 | . 1047 424 720 97 1122 1359 619 1017 329 408 1272 1053 Hover . | . . . . . . . . . . . . . Flight . | . . . . . . . . . . . . . Fastest Speed 50 | 50 135 140 110 110 95 110 101 100 110 110 110 110 Average Speed 124 | 155 144 140 130 169 110 110 111 114 110 110 110 163 Slowest Speed 320 | 160 320 140 140 240 125 110 170 175 110 110 110 210 Overloaded Moves . | . . . . . . . . . . . . . Propulsion Burnouts . | . . . . . . . . . . . . . Robots Hopped . | . . . . . . . . . . . . . Potential Cave-ins . | . . . . . . . . . . . . . Cave-ins Triggered . | . . . . . . . . . . . . . Exploration Rate (%) 64 | 5 98 99 71 50 62 26 82 26 71 72 86 90 Regions Visited 12 Branch Regions 8 Pre-discovered Areas 5 | . . 2 1 1 . . . . 1 . . . Known Exits Taken 8 | . 1 . . . 1 1 1 1 1 1 1 . Unknown Exits Taken 4 | 1 . 1 1 1 . . . . . . . . Scrap Searched 17 | . . 1 . 3 . . . . 2 9 2 . Spaces Dug 87 | . 14 . . . 32 6 12 23 . . . . Terrain Destroyed 268 | . 25 . . . 36 6 22 50 1 . . 128 Melee 26 | . . . . . 8 6 12 . . . . . Projectile 102 | . 25 . . . 7 . . 50 1 . . 19 AOE 140 | . . . . . 21 . 10 . . . . 109 Terrain Rammed . | . . . . . . . . . . . . . Walls Destroyed . | . . . . . . . . . . . . . Machines Disabled . | . . . . . . . . . . . . . Actions | -11 -10 -10 -10 -9 -8 -7 -7 -6 -6 -6 -6 -6 --------- Run | Yrd Mat Min Exi Min Mat Fac Sto Fac Low Low Zio Dee Total 12454 | 76 1594 468 774 219 1462 1686 925 1492 436 552 1338 1432 Wait 1520 | . 233 11 14 4 173 216 153 298 89 131 53 145 Move 9660 | 50 1112 423 719 167 1121 1358 618 1016 328 407 1271 1070 Hop . | . . . . . . . . . . . . . Pick Up 138 | 6 33 1 7 2 19 14 6 19 3 4 3 21 Fast Attach 87 | 7 5 . 3 4 18 4 10 14 1 1 1 19 Attach 52 | . 6 1 . 2 5 3 5 9 . . . 21 Detach 13 | . 1 . . 1 4 . 2 2 . . . 3 Swap 213 | . 37 11 4 6 29 27 44 16 4 3 3 29 Drop 184 | . 23 2 17 3 37 18 13 28 5 2 3 33 Fire 528 | 13 144 19 . 28 47 40 51 82 6 4 4 90 Melee 42 | . . . 10 2 9 6 15 . . . . . Ram 1 | . . . . . . . . . . . . 1 Kick . | . . . . . . . . . . . . . Crush . | . . . . . . . . . . . . . Escape Stasis 16 | . . . . . . . 8 8 . . . . Rewire . | . . . . . . . . . . . . . Trap . | . . . . . . . . . . . . . Miscellaneous . | . . . . . . . . . . . . . Route ------- -11/Scrapyard -10/Materials (discovered 6 exits: [*Mat x3] / *Min x2 / [*Sub]) -10/Mines (discovered 4 exits: [*Mat x2] / *Exi / [*Sub]) -10/Exiles -9/Mines -8/Materials (discovered 3 exits: *Fac x3) -7/Factory (discovered 3 exits: *Fac x2 / *Sto) -7/Storage -6/Factory (discovered 5 exits: *Fac / *Low x2 / Ext x2) -6/Lower Caves -6/Lower Caves -6/Zion (discovered 2 exits: *Dee / [*Pro]) -6/Deep Caves (discovered 1 exit: *Pro) History --------- Turn | Location | Event 7 | -11/Scrapyard | Discovered new exit (range 16) 135 | -11/Scrapyard | Entered Materials 302 | -10/Materials | Build established: Mutant 624 | -10/Materials | Discovered new exit (range 7) 692 | -10/Materials | Discovered new exit (range 15) 805 | -10/Materials | Discovered new exit (range 5) 1381 | -10/Materials | Central database locked down 1387 | -10/Materials | Discovered new exit (range 3) 1482 | -10/Materials | Discovered new exit (range 13) 1632 | -10/Materials | Identified exit to Mines 2535 | -10/Materials | Entered Mines 2559 | -10/Mines | Found a hidden stash of uninstalled traps 2704 | -10/Mines | Learned location of Mines (-9) 2715 | -10/Mines | Learned 4 Materials zone layouts 2744 | -10/Mines | Found a damaged Exp. Sensor Array with a note attached 2747 | -10/Mines | Found Prototype Device 2747 | -10/Mines | Identified Exp. Sensor Array 2761 | -10/Mines | Discovered new exit (range 16) 3019 | -10/Mines | Discovered new exit (range 13) 3024 | -10/Mines | A weapon hastily lodged in a ceiling crevice suddenly fell to the ground 3072 | -10/Mines | Discovered new exit (range 4) 3164 | -10/Mines | Learned location of Storage (-7) 3211 | -10/Mines | Deemed a non-threat by the Exiles lab entrance 3211 | -10/Mines | Discovered new exit (range 5) 3219 | -10/Mines | Entered Exiles 3257 | -10/Exiles | Met 8R-AWN 3278 | -10/Exiles | Met EX-HEX 3331 | -10/Exiles | Met EX-DEC 3521 | -10/Exiles | Met EX-BIN 3600 | -10/Exiles | Learned location of Zion (-6) 3642 | -10/Exiles | Aligned with FarCom system 3643 | -10/Exiles | Given EX-Vault access code 3675 | -10/Exiles | Opened EX-Vault 3689 | -10/Exiles | Found XL Autogun Array 3725 | -10/Exiles | Warned to stay clear of 0b10 Research branches 3755 | -10/Exiles | Found Field Lobotomy Kit 3979 | -10/Exiles | Discovered new exit (range 14) 4215 | -10/Exiles | Stole two prototypes: XL Autogun Array, Field Lobotomy Kit 4215 | -10/Exiles | Entered Mines 4217 | -9/Mines | Core integrity fell below 50% 4236 | -9/Mines | Core integrity fell below 20% 4266 | -9/Mines | Lost 4 parts (2n2w) 4551 | -9/Mines | Discovered new exit (range 10) 4598 | -9/Mines | Entered Materials 4598 | -8/Materials | Accompanied by 2 allies 4598 | -8/Materials | Evolved 4 slots: Propulsion x1, Utility x1, Weapon x2 4605 | -8/Materials | Led the pair of lost Derelicts to an unsafe place 4925 | -8/Materials | Build established: Scavenger-Skirmisher 5547 | -8/Materials | Identified exit to Factory 6295 | -8/Materials | Entered Factory 6295 | -7/Factory | Evolved 2 slots: Utility x2 6297 | -7/Factory | FarCom data flow suspended 7352 | -7/Factory | Discovered new exit (range 15) 7367 | -7/Factory | Identified exit to Factory 7437 | -7/Factory | Discovered exit to Factory (range 5) 7586 | -7/Factory | Build established: Skirmisher 7859 | -7/Factory | Discovered new exit (range 5) 7864 | -7/Factory | Identified exit to Storage 7996 | -7/Factory | Repaired Coolant Injector? 8175 | -7/Factory | Repaired Imp. Deuterium Engine 8176 | -7/Factory | Cargo convoy interrupted 8225 | -7/Factory | Entered Storage 8506 | -7/Storage | Found Prototype Launcher 8506 | -7/Storage | Identified Gui. Missile Launcher 8862 | -7/Storage | Assisted by bots powering up and referring to "LRC-V3" 9057 | -7/Storage | Lost 3 allies 9103 | -7/Storage | P-60 Hacker assimilated allied Trooper 4f 9165 | -7/Storage | Garrison activated, responded to threat 9218 | -7/Storage | Lost 3 allies 9329 | -7/Storage | Lost 3 parts (1n2u) 9402 | -7/Storage | Entered Factory 9402 | -6/Factory | Evolved 2 slots: Power x1, Propulsion x1 9602 | -6/Factory | Build established: Tank 10321 | -6/Factory | Build established: Scavenger-Skirmisher 10321 | -6/Factory | Identified exit to Lower Caves 10321 | -6/Factory | Identified exit to Extension 10949 | -6/Factory | Discovered new exit (range 15) 10971 | -6/Factory | Identified exit to Factory 11178 | -6/Factory | Entered Lower Caves 11222 | -6/Lower Caves | Encountered a Warlord checkpoint 11556 | -6/Lower Caves | Discovered new exit (range 9) 11590 | -6/Lower Caves | Identified exit to Lower Caves 11609 | -6/Lower Caves | Acquired the password to a Derelict Tinkerer's latest research 11617 | -6/Lower Caves | Found Prototype Special Weapon 11617 | -6/Lower Caves | Identified Molecular Deconstructor 11653 | -6/Lower Caves | Entered another Lower Caves area 11676 | -6/Lower Caves | Learned Factory stockpile data 11807 | -6/Lower Caves | Spotted N0-K10(f) 11807 | -6/Lower Caves | Spotted 2H-WI3(f) 11808 | -6/Lower Caves | Encountered a Master Thief 11808 | -6/Lower Caves | Encountered a Master Thief 11808 | -6/Lower Caves | Spotted O2-JWU(f) 11809 | -6/Lower Caves | Encountered a Master Thief 11809 | -6/Lower Caves | Spotted G9-95C(f) 11810 | -6/Lower Caves | Encountered a Master Thief 11811 | -6/Lower Caves | Field Lobotomy Kit stolen by Master Thief 11812 | -6/Lower Caves | Molecular Deconstructor stolen by Master Thief 11813 | -6/Lower Caves | Imp. Kinecellerator stolen by Master Thief 11813 | -6/Lower Caves | Adv. Plasma Cannon stolen by Master Thief 11863 | -6/Lower Caves | Entered a destroyed Warlord outpost 11894 | -6/Lower Caves | Learned location of 1 exit from Factory 11908 | -6/Lower Caves | Discovered new exit (range 17) 11934 | -6/Lower Caves | Identified exit to Zion 12167 | -6/Lower Caves | Learned Factory security intel 12258 | -6/Lower Caves | Entered Zion 12341 | -6/Zion | Discovered new exit (range 11) 12355 | -6/Zion | Given A8's code to call for help 12395 | -6/Zion | System corruption cleaned by Quarantine Array 12466 | -6/Zion | Learned 4 Factory zone layouts 12594 | -6/Zion | Learned Factory interactive machine intel 12608 | -6/Zion | Identified exit to Deep Caves 12616 | -6/Zion | Found CR-A16's Pointy Stick 13154 | -6/Zion | Met Imprinter 13393 | -6/Zion | Found Prototype Device 13393 | -6/Zion | Identified Mobile Refinery Mk. CCLXVII 13728 | -6/Zion | Saw the warning signs outside the Deep Caves entrance 13731 | -6/Zion | Entered Deep Caves 14018 | -6/Deep Caves | Z-Facility disabled 14061 | -6/Deep Caves | Attacked by Z-Imprinter 14077 | -6/Deep Caves | Destroyed Z-Imprinter 14102 | -6/Deep Caves | Lost 3 parts (2n1u) 14105 | -6/Deep Caves | Found Prototype Protection 14105 | -6/Deep Caves | Identified Zio. Weapon Casing 14213 | -6/Deep Caves | Lost 3 parts (1p2u) 14367 | -6/Deep Caves | Found Zio. Weapon Casing 14479 | -6/Deep Caves | Found Prototype Protection 14479 | -6/Deep Caves | Identified Zio. Heavy Carapace 14482 | -6/Deep Caves | Lost 3 parts (1n1u1w) 14545 | -6/Deep Caves | Found Zio. Weapon Casing 14816 | -6/Deep Caves | Build established: Scavenger-Tank 15158 | -6/Deep Caves | Discovered new exit (range 6) 15166 | -6/Deep Caves | Identified exit to Proximity Caves 15468 | -6/Deep Caves | Spotted AG-61961 15513 | -6/Deep Caves | Spotted AG-54870 15621 | -6/Deep Caves | Exposed GOLEM chamber 15622 | -6/Deep Caves | Triggered Deep Caves wall 15680 | -6/Deep Caves | Destroyed AG-61961 15860 | -6/Deep Caves | Core integrity fell below 50% 15862 | -6/Deep Caves | Spotted AS-87802 15886 | -6/Deep Caves | Destroyed 12 combat bots 15906 | -6/Deep Caves | Core integrity fell below 20% 15909 | -6/Deep Caves | Destroyed by as-35664 with Assembled P-sword Last Messages --------------- 15865_ as-01047 destroyed. 15867_ Wheel destroyed. 15867_ Critical hit (Burn: +80). 15868_ as-26517 destroyed. 15873_ as-89430 released from Mobile Assembly Unit. 15880_ Exp. Heat Sink destroyed. 15882_ Knocked back. 15883_ System corrupted: IFF burst signal emitted. 15884_ Exp. Heat Sink destroyed. 15891_ Zio. Composite Leg I destroyed. 15891_ Zio. Light DM Reactor destroyed. 15898_ Zio. Composite Leg I destroyed. 15901_ as-65165 destroyed. 15902_ Zio. Phaser-S destroyed. 15904_ Zio. Composite Leg I severed. 15905_ Knocked back. 15907_ Adv. Signal Interpreter destroyed. 15907_ System corrupted by crushing effect (+4). Map ----- +----------------------------------------------------+ | | | | | | | | | | | | | ?????????????????????????????????????????????????? | | ????####????????????????###??######???#####??????? | | ?#### ##??????????????## ### ##### ######?? | | ## #??????????????# #?? | | # #???####???????# #?# | | #????# #???????# #??# | | #????# #??###??## ## #??# | | ##???# ### ###?### ### #### | | ##?## ##??## #?# ## " | | ### #???## #### #### | | #????## #?## #?? | | #?????## #?## #?? | | ## #?????## #### ##?# | | ### #????## #### #?## | | ###### #???## #?# #?# | | #????## ##??## #?# #?#! | | #???## #####??## ##?## #?## | | # #??## ##???#### ##??## #??? | | #######??# ###### a ##??## ##?? | | ?????????# %a a@ ##???# #?? | | ?????????## aa a a aaaa ##???## #?# | | ????????### #####a aa #???## ### | | ???????## ##??## a ## #??## ## | | ???????# ##??####### ##?# ### | | ???????### ##??#### #?## ##?# | | ####????## #### #??## ##??## | | ##??## ##> # ###???# #????# | | #### #### ############## ##????? | | ##???# #??????## ## ## #?????? | | ##????########### ## #?????? | | #??????# ######?????# | | #??????# ###???####??## | | ##?????# ##### ######## ##?# | | ""#! #?##### ###?## ### | | #"#### ## ## ##### ## | | "###??## ### ######## # | | "#?????# #####??????# | | #?????# ##?????????# | | # #?????## ######?#### | | #??????## ### ## | | ##??????# "" ## | | #??????# ## """ #### | | #??????# #### ##### " ##??# | | ##??????### ##??## ##???# ##???# | +----------------------------------------------------+ Best States ------------- Heat Dissipation 89 Coolant Potential 65 Energy Generation 49 Energy Capacity 700 Matter Stores 300 Matter Capacity 300 Sight Range 22 Robot Scan Range 20 Terrain Scan Density 10 Jamming Range 12 Armor Coverage 1200 Weapon Shielding 100 Phase Shifting 5 Evasion (%) 45 Recoil Reduction 2 Offensive Hacking 10 Defensive Hacking 10 Item Schematics ----------------- Disposable Heat Sink | -8/Materials | Hacked Hcp. Storage Unit | -7/Factory | Scanalyzed Robot Schematics ------------------ None Fabricated ------------ Nothing Repaired ---------- Coolant Injector | 60% | -7/Factory Imp. Deuterium Engine | 61% | -7/Factory Alien Tech Used ----------------- None Achievements -------------- Are We The Baddies? That's One Door That Should Stay Closed Challenges ------------ None Game ------ Seed ThrusterInsulatedPlating Manual? 0 Play Time 03:07:16 Cumulative 250.7 hours Start 2025.08.24 @ 12:40:19 End 2025.08.24 @ 16:09:01 Sessions 3 Manual Loads 0 Difficulty Rogue Special Mode None Game No. 172 Rogue 172 Adventurer 0 Explorer 0 Win Type - Total 2 Types 2/0/0/0/0/0/0/0/0/0 Lore% 71 Gallery% 69 Achievement% 58 Wizard Run 0 Options --------- Layout 1 ASCII 0 Keyboard 0 Movement Mouse Keybinds 0 Fullscreen 1 Font 32/SmallcapsGlow Map View 50x35 Zoom Use 0% Tactical HUD 1 Map Filters NONE Filters NONE Steam 1 RUN: 3bce5cea-3e9e-493d-aeae-f8cd88781de3